bitfinex/quotes_SOLUSD_20240825
["timestamp","ask_amount","ask_price","bid_price","bid_amount"]
[1724561010223,0.5781,158.72,158.66,20.0]
[1724561011425,22.8266,158.71,158.66,20.0]
[1724561011615,1.29518105,158.7,158.62,20.0]
[1724561012508,46.29518105,158.7,158.62,20.0]
[1724561013823,46.29518105,158.7,158.61,5.53043561]
[1724561014021,46.29518105,158.7,158.6,9.87282194]
[1724561014022,16.5615,158.69,158.6,9.87282194]
[1724561014327,1.29518105,158.68,158.6,9.87282194]
[1724561014699,1.29518105,158.68,158.59,7.13814175]
[1724561014927,15.2175,158.65,158.59,7.13814175]
[1724561015148,15.2175,158.65,158.6,1.26090095]
[1724561016310,15.2175,158.65,158.6,21.26090095]
[1724561017207,15.2175,158.65,158.61,20.0]
[1724561017525,15.2175,158.65,158.59,21.2608992]
[1724561019028,15.2175,158.65,158.6,1.26089891]
[1724561019213,15.2175,158.65,158.59,21.26089889]
[1724561022829,15.2175,158.65,158.6,1.26089817]
[1724561023142,15.2175,158.65,158.58,9.87282194]
[1724561023436,15.2175,158.65,158.59,21.26089801]
[1724561024714,15.2175,158.65,158.6,9.87282194]
[1724561024916,15.2175,158.65,158.61,21.26073156]
[1724561026520,73.6698,158.7,158.61,21.26073156]
[1724561026722,73.6698,158.7,158.64,9.87282194]
[1724561026723,22.3683,158.7,158.64,9.87282194]
[1724561027041,22.3683,158.7,158.65,21.26044841]
[1724561028816,22.3683,158.7,158.66,9.87282194]
[1724561029024,22.3683,158.7,158.67,21.26027198]
[1724561034225,22.3683,158.7,158.68,20.0]
[1724561035251,22.3683,158.7,158.67,21.26027198]
[1724561036552,22.3683,158.7,158.67,20.0]
[1724561036742,22.3683,158.7,158.62,5.53043561]
[1724561036743,22.3683,158.7,158.64,9.87282194]
[1724561037044,22.3683,158.7,158.65,20.0]
[1724561040254,22.3683,158.7,158.66,1.26035469]
[1724561045755,22.3683,158.7,158.65,20.0]
[1724561046321,22.3683,158.7,158.65,21.26044044]
[1724561046619,22.3683,158.7,158.66,9.87282194]
[1724561046824,22.3683,158.7,158.67,20.0]
[1724561047627,22.3683,158.7,158.65,20.0]
[1724561052346,22.3683,158.7,158.66,1.25958248]
[1724561054750,22.3683,158.7,158.66,13.84703686]
[1724561055054,22.3683,158.7,158.67,20.0]
[1724561055737,22.3683,158.7,158.68,1.26035176]
[1724561056441,16.027,158.7,158.67,20.0]
[1724561057532,16.027,158.7,158.68,2.71377674]
[1724561058362,16.027,158.7,158.67,20.0]
[1724561060958,15.9981,158.77,158.68,13.17453651]
[1724561061165,15.9981,158.77,158.71,9.87282194]
[1724561061371,15.9981,158.77,158.69,22.7127589]
[1724561061372,0.817806,158.81,158.76,9.87282194]
[1724561061680,0.817806,158.81,158.8,9.87282194]
[1724561061957,0.817806,158.81,158.77,20.0]
[1724561062736,0.817806,158.81,158.75,9.87282194]
[1724561062962,0.817806,158.81,158.76,20.0]
[1724561063260,0.817806,158.81,158.73,29.87282194]
[1724561063563,0.817806,158.81,158.74,18.8174286]
[1724561063735,0.817806,158.81,158.75,20.0]
[1724561063935,0.817806,158.81,158.75,38.8174286]
[1724561075568,6.6598,158.79,158.75,20.0]
[1724561075869,6.6598,158.79,158.76,20.0]
[1724561076071,6.6598,158.79,158.72,20.0]
[1724561078747,15.4829,158.78,158.72,20.0]
[1724561079850,15.4829,158.78,158.72,30.0651866]
[1724561083666,15.4829,158.78,158.73,0.62175186]
[1724561086067,15.4829,158.78,158.72,39.93800854]
[1724561089065,15.4829,158.78,158.73,1.25972774]
[1724561089278,15.4829,158.78,158.74,11.13246653]
[1724561089576,15.4829,158.78,158.75,30.0651866]
[1724561089778,15.4829,158.78,158.76,1.2594859]
[1724561095762,15.4829,158.78,158.75,20.0]
[1724561096783,15.4829,158.78,158.73,20.0]
[1724561096993,15.4829,158.78,158.74,11.13171075]
[1724561097181,15.4829,158.78,158.75,20.0]
[1724561097356,15.4829,158.78,158.76,1.25961653]
[1724561099177,15.4829,158.78,158.75,20.0]
[1724561101671,15.4829,158.78,158.71,9.87282194]
[1724561101887,15.4829,158.78,158.72,24.38993321]
[1724561102082,15.4829,158.78,158.73,0.5914882]
[1724561102292,15.4829,158.78,158.73,12.13558147]
[1724561102607,15.4829,158.78,158.74,24.38973452]
[1724561102791,15.4829,158.78,158.74,20.0]
[1724561103173,15.4829,158.78,158.73,20.63759216]
[1724561103379,15.4829,158.78,158.74,4.38817583]
[1724561103579,15.4829,158.78,158.75,4.38817583]
[1724561103795,15.4829,158.78,158.74,4.38817583]
[1724561103998,15.4829,158.78,158.75,4.38817583]
[1724561104167,15.4829,158.78,158.76,1.259747]
[1724561104384,6.6598,158.79,158.77,9.87282194]
[1724561106499,0.817806,158.81,158.77,9.87282194]
[1724561112099,0.817806,158.81,158.76,1.259747]
[1724561112401,0.817806,158.81,158.76,21.259747]
[1724561112581,0.817806,158.81,158.76,20.0]
[1724561114504,0.817806,158.81,158.77,1.57640916]
[1724561114683,0.817806,158.81,158.76,20.0]
[1724561123083,0.817806,158.81,158.76,29.12629771]
[1724561125183,0.817806,158.81,158.77,18.99911965]
[1724561125385,0.817806,158.81,158.78,20.0]
[1724561126684,0.817806,158.81,158.79,9.87282194]
[1724561126911,0.817806,158.81,158.8,16.11809263]
[1724561132594,0.817806,158.81,158.8,25.24439034]
[1724561135302,0.817806,158.81,158.8,41.53509034]
[1724561135513,21.4748,158.92,158.85,9.87282194]
[1724561135697,45.0,158.91,158.85,9.87282194]
[1724561139012,45.0,158.91,158.83,9.87282194]
[1724561139214,45.0,158.91,158.84,20.0]
[1724561139433,44.5,158.91,158.84,20.0]
[1724561146133,21.4748,158.92,158.85,9.87282194]
[1724561146338,21.4748,158.92,158.85,18.99911965]
[1724561149835,39.49128776,159.04,158.85,18.99911965]
[1724561149836,16.6176,158.96,158.89,9.87282194]
[1724561151217,16.6176,158.96,158.85,9.12629771]
[1724561151426,16.6176,158.96,158.89,9.87282194]
[1724561152525,45.0,158.95,158.89,9.87282194]
[1724561152724,16.6176,158.96,158.89,9.87282194]
[1724561155160,0.817806,158.97,158.91,9.87282194]
[1724561155340,0.817806,158.97,158.92,20.0]
[1724561156120,0.817806,158.97,158.92,9.87282194]
[1724561156422,0.817806,158.97,158.93,20.0]
[1724561158040,0.817806,158.97,158.94,9.87282194]
[1724561160057,0.817806,158.97,158.93,20.0]
[1724561160230,0.817806,158.97,158.94,0.37974548]
[1724561160624,0.817806,158.97,158.93,20.0]
[1724561162549,0.817806,158.97,158.87,8.2208411]
[1724561162741,7.378906,158.97,158.89,9.87282194]
[1724561163047,7.378906,158.97,158.9,1.25827036]
[1724561164347,7.378906,158.97,158.9,21.25827036]
[1724561166844,13.669506,158.97,158.9,21.25827036]
[1724561167040,46.29518105,158.96,158.88,29.87282194]
[1724561167231,45.0,158.96,158.88,29.87282194]
[1724561167925,45.0,158.96,158.88,38.09366304]
[1724561175863,45.0,158.96,158.89,1.25777141]
[1724561177365,45.0,158.96,158.89,2.83287941]
[1724561177582,45.0,158.96,158.9,1.25769225]
[1724561180645,45.0,158.96,158.89,2.83359125]
[1724561180848,45.0,158.96,158.9,1.25848459]
[1724561181976,45.0,158.96,158.89,1.25848458]
[1724561182768,16.0045,158.95,158.89,1.25848458]
[1724561191396,16.0045,158.95,158.89,3.95802308]
[1724561191586,16.0045,158.95,158.9,1.25840538]
[1724561192277,16.0045,158.95,158.88,38.09366304]
[1724561192590,16.0045,158.95,158.89,2.6996036]
[1724561193669,16.0045,158.95,158.89,3.9573815]
[1724561194169,16.0045,158.95,158.89,3.95721393]
[1724561194365,16.0045,158.95,158.89,1.2577779]
[1724561194672,17.29968105,158.95,158.89,4.37111897]
[1724561194877,7.33128105,158.94,158.88,28.2208411]
[1724561195066,45.0,158.93,158.88,20.0]
[1724561195265,1.29518105,158.92,158.86,27.1265471]
[1724561195472,1.29518105,158.92,158.87,4.37269094]
[1724561195678,45.0,158.93,158.87,4.37269094]
[1724561196093,1.29518105,158.92,158.87,4.37269094]
[1724561197286,1.29518105,158.92,158.86,20.0]
[1724561197594,45.0,158.93,158.84,9.87282194]
[1724561197595,15.7552,158.91,158.84,9.87282194]
[1724561197769,51.0361,158.9,158.85,4.37252197]
[1724561198089,52.33128105,158.9,158.86,4.37252197]
[1724561198398,52.33128105,158.9,158.84,4.37252197]
[1724561198688,52.33128105,158.9,158.83,9.87282194]
[1724561198885,52.33128105,158.9,158.84,4.37412236]
[1724561199089,1.29518105,158.89,158.82,16.99910069]
[1724561199295,12.6842,158.86,158.83,4.37441031]
[1724561199599,27.70940299,158.85,158.75,11.50548189]
[1724561199811,45.0,158.84,158.74,9.87282194]
[1724561199968,1.29518105,158.83,158.75,11.50906757]
[1724561200169,1.29518105,158.83,158.76,4.37642011]
[1724561200411,45.0,158.84,158.74,9.87282194]
[1724561200698,16.5414,158.85,158.77,4.37603773]
[1724561200900,16.5414,158.85,158.8,9.87282194]
[1724561201200,16.5414,158.85,158.81,1.25913116]
[1724561201406,16.5414,158.85,158.82,9.87282194]
[1724561201699,6.3892,158.86,158.83,21.2589726]
[1724561202289,16.5414,158.89,158.83,21.2589726]
[1724561202594,16.5414,158.89,158.84,9.87282194]
[1724561202890,16.5414,158.89,158.86,9.87282194]
[1724561203097,16.5414,158.93,158.87,20.0]
[1724561205298,1.29518105,158.92,158.87,20.0]
[1724561205503,45.0,158.92,158.84,9.87282194]
[1724561205801,54.87282194,158.92,158.85,20.0]
[1724561206011,6.1731,158.9,158.83,20.0]
[1724561206185,15.5391,158.88,158.82,20.0]
[1724561206576,15.5391,158.88,158.81,9.87282194]
[1724561206879,15.5391,158.88,158.81,4.37260928]
[1724561208103,1.29518105,158.87,158.8,7.7658411]
[1724561208300,45.0,158.87,158.8,7.7658411]
[1724561208602,45.0,158.87,158.8,9.02511062]
[1724561208977,45.0,158.87,158.81,20.0]
[1724561209309,45.0,158.87,158.79,9.87282194]
[1724561209611,45.0,158.87,158.76,7.7658411]
[1724561209612,6.1731,158.85,158.76,12.13989245]
[1724561209913,46.29518105,158.84,158.77,4.37320054]
[1724561210091,15.5391,158.83,158.77,4.37320054]
[1724561210414,15.5391,158.83,158.78,11.13018256]
[1724561211393,15.5391,158.83,158.8,9.87282194]
[1724561211603,15.5391,158.83,158.81,20.0]
[1724561212476,15.5391,158.83,158.81,21.25617909]
[1724561214389,6.1731,158.85,158.81,21.25617909]
[1724561214579,16.1409,158.87,158.82,9.87282194]
[1724561214787,16.1409,158.87,158.83,20.0]
[1724561217208,16.1409,158.87,158.8,9.87282194]
[1724561217392,16.1409,158.87,158.81,20.0]
[1724561218790,16.1409,158.87,158.82,9.87282194]
[1724561220808,16.1409,158.87,158.82,11.13144219]
[1724561221182,16.1409,158.87,158.82,1.25862025]
[1724561221389,16.1409,158.87,158.82,11.13144219]
[1724561222086,16.1409,158.87,158.84,9.87282194]
[1724561222290,16.1409,158.87,158.85,1.25836102]
[1724561222491,16.1409,158.87,158.84,9.87282194]
[1724561227622,16.1409,158.87,158.85,1.25895965]
[1724561228098,6.3848,158.9,158.85,1.25895965]
[1724561230736,6.3848,158.9,158.84,9.87282194]
[1724561233123,6.3848,158.9,158.85,1.25889041]
[1724561234222,6.3848,158.9,158.85,21.25889041]
[1724561234532,6.3848,158.9,158.86,1.25881116]
[1724561237216,6.3848,158.9,158.86,9.87282194]
[1724561237410,6.3848,158.9,158.87,1.25802532]
[1724561238926,6.3848,158.9,158.86,9.87282194]
[1724561239132,6.3848,158.9,158.85,20.0]
[1724561241818,6.3848,158.9,158.86,1.57537496]
[1724561242205,6.3848,158.9,158.87,1.57536608]
[1724561242409,6.3848,158.9,158.88,1.57536608]
[1724561242623,6.3848,158.9,158.85,20.0]
[1724561242819,6.3848,158.9,158.86,12.70707889]
[1724561243127,6.3848,158.9,158.87,1.57536573]
[1724561243322,6.3848,158.9,158.88,1.57536573]
[1724561243631,6.3848,158.9,158.87,20.0]
[1724561243832,6.3848,158.9,158.88,1.57534553]
[1724561244138,6.3848,158.9,158.89,1.57534553]
[1724561244324,6.3848,158.9,158.87,21.25865809]
[1724561244524,6.3848,158.9,158.88,1.57534062]
[1724561244712,6.3848,158.9,158.87,21.25865809]
[1724561244909,6.3848,158.9,158.88,1.57534093]
[1724561245111,6.3848,158.9,158.87,21.25865809]
[1724561245313,6.3848,158.9,158.88,1.57534568]
[1724561245516,6.3848,158.9,158.87,21.25865809]
[1724561245716,6.3848,158.9,158.88,1.57530195]
[1724561245918,6.3848,158.9,158.89,1.57530195]
[1724561248225,16.1001,158.91,158.89,1.57530195]
[1724561248429,16.1001,158.91,158.88,9.87282194]
[1724561248628,16.1001,158.91,158.89,1.57519632]
[1724561248819,16.1001,158.91,158.9,1.57519632]
[1724561251927,16.1001,158.91,158.88,9.87282194]
[1724561252130,16.1001,158.91,158.89,1.57520473]
[1724561252335,16.1001,158.91,158.88,9.87282194]
[1724561252631,16.1001,158.91,158.89,1.57520504]
[1724561252935,16.1001,158.91,158.88,9.87282194]
[1724561253228,16.1001,158.91,158.89,1.57519632]
[1724561253434,16.1001,158.91,158.88,9.87282194]
[1724561253812,16.1001,158.91,158.89,1.57519632]
[1724561254025,16.1001,158.91,158.88,9.87282194]
[1724561254334,16.1001,158.91,158.89,1.57519632]
[1724561254517,16.1001,158.91,158.88,9.87282194]
[1724561254719,16.1001,158.91,158.89,1.57519632]
[1724561255035,16.1001,158.91,158.88,9.87282194]
[1724561255332,16.1001,158.91,158.89,1.57519598]
[1724561255512,16.1001,158.91,158.88,9.87282194]
[1724561255714,16.1001,158.91,158.89,1.57519598]
[1724561255914,16.1001,158.91,158.88,9.87282194]
[1724561256123,16.1001,158.91,158.89,1.57519607]
[1724561256309,16.1001,158.91,158.88,9.87282194]
[1724561256508,16.1001,158.91,158.89,1.57519598]
[1724561256844,16.1001,158.91,158.88,9.87282194]
[1724561257133,16.1001,158.91,158.89,1.57519494]
[1724561257335,16.1001,158.91,158.9,1.57519494]
[1724561259611,16.1001,158.91,158.86,20.0]
[1724561259814,16.1001,158.91,158.86,21.57538474]
[1724561260118,16.1001,158.91,158.86,20.0]
[1724561260313,16.1001,158.91,158.87,1.57538553]
[1724561260515,16.1001,158.91,158.86,20.0]
[1724561261923,16.1001,158.91,158.86,21.2588016]
[1724561262116,16.1001,158.91,158.86,9.87282194]
[1724561269130,16.1001,158.91,158.86,15.5000878]
[1724561269342,16.1001,158.91,158.86,11.13083277]
[1724561269918,16.1001,158.91,158.86,15.50096152]
[1724561270118,16.1001,158.91,158.86,11.13083277]
[1724561270643,16.1001,158.91,158.86,15.50097469]
[1724561270846,16.1001,158.91,158.86,11.13083277]
[1724561271342,16.1001,158.91,158.86,15.50188347]
[1724561271652,16.1001,158.91,158.86,11.13083277]
[1724561272243,16.1001,158.91,158.86,15.5022558]
[1724561272551,16.1001,158.91,158.86,11.13083277]
[1724561272925,16.1001,158.91,158.86,15.50177154]
[1724561273125,16.1001,158.91,158.86,11.13083277]
[1724561275444,16.1001,158.91,158.86,9.87282194]
[1724561276245,16.1001,158.91,158.87,4.37031618]
[1724561277228,16.1001,158.91,158.86,9.87282194]
[1724561277429,16.1001,158.91,158.87,4.37021546]
[1724561277652,16.1001,158.91,158.86,9.87282194]
[1724561277856,16.1001,158.91,158.88,9.87282194]
[1724561278157,16.1001,158.91,158.88,11.13146316]
[1724561278356,16.1001,158.91,158.88,9.87282194]
[1724561278528,16.1001,158.91,158.89,4.36899505]
[1724561278727,16.1001,158.91,158.88,9.87282194]
[1724561281353,16.1001,158.91,158.89,20.0]
[1724561289354,16.1001,158.91,158.89,21.25826912]
[1724561289561,6.5301,158.94,158.89,21.25826912]
[1724561289856,6.5301,158.94,158.9,1.25818993]
[1724561292262,6.5301,158.94,158.89,21.25850712]
[1724561292564,6.5301,158.94,158.89,20.0]
[1724561293938,7.82528105,158.94,158.89,20.0]
[1724561294364,7.82528105,158.94,158.87,20.0]
[1724561298170,1.29518105,158.93,158.83,7.7658411]
[1724561298457,16.56748105,158.92,158.84,9.87282194]
[1724561299629,16.56748105,158.92,158.85,20.0]
[1724561300439,16.56748105,158.92,158.84,29.87282194]
[1724561301555,6.2165,158.91,158.84,29.87282194]
[1724561301751,1.29518105,158.9,158.84,29.87282194]
[1724561302169,46.29518105,158.9,158.84,29.87282194]
[1724561302338,1.29518105,158.89,158.84,29.87282194]
[1724561302839,46.29518105,158.9,158.84,29.87282194]
[1724561303765,6.2165,158.91,158.86,9.87282194]
[1724561306437,7.51168105,158.91,158.84,29.87282194]
[1724561308749,6.2165,158.91,158.84,29.87282194]
[1724561309067,6.2165,158.91,158.85,1.25678322]
[1724561310446,6.2165,158.91,158.86,9.87282194]
[1724561310773,6.2165,158.91,158.87,1.25712152]
[1724561332377,6.2165,158.91,158.86,9.87282194]
[1724561332560,6.2165,158.91,158.87,2.83187607]
[1724561332771,6.2165,158.91,158.87,1.25633023]
[1724561334874,6.2165,158.91,158.88,11.4483766]
[1724561335069,15.2723,158.92,158.9,9.87282194]
[1724561335391,15.2723,158.92,158.91,1.57530202]
[1724561335890,0.817806,158.97,158.91,2.83118837]
[1724561335891,16.2266,158.96,158.91,2.83118837]
[1724561336094,0.817806,158.97,158.94,9.87282194]
[1724561336474,0.817806,158.97,158.95,1.57476604]
[1724561336684,0.817806,158.97,158.94,9.87282194]
[1724561336868,0.817806,158.97,158.96,1.57471501]
[1724561337601,0.817806,158.97,158.94,9.87282194]
[1724561337985,0.817806,158.97,158.95,1.57471743]
[1724561338285,0.817806,158.97,158.94,9.87282194]
[1724561338491,0.817806,158.97,158.95,0.86568934]
[1724561338671,0.817806,158.97,158.96,9.87282194]
[1724561339681,0.817806,158.97,158.96,11.13083306]
[1724561340197,0.817806,158.97,158.96,31.13083306]
[1724561342375,0.817806,158.97,158.96,29.87282194]
[1724561344101,0.817806,158.97,158.96,20.0]
[1724561344403,0.817806,158.97,158.95,9.87282194]
[1724561344603,0.817806,158.97,158.96,20.0]
[1724561347285,0.817806,158.97,158.91,7.7658411]
[1724561347481,0.817806,158.97,158.93,9.87282194]
[1724561347706,0.817806,158.97,158.94,21.25819122]
[1724561348299,0.817806,158.97,158.95,9.87282194]
[1724561351705,0.817806,158.97,158.94,29.87282194]
[1724561353379,0.817806,158.97,158.95,1.2572428]
[1724561354608,0.817806,158.97,158.96,9.87282194]
[1724561355185,0.817806,158.97,158.96,11.13006474]
[1724561355379,0.817806,158.97,158.96,1.2572428]
[1724561355584,0.817806,158.97,158.95,9.87282194]
[1724561355879,0.817806,158.97,158.96,21.25798296]
[1724561356911,0.817806,158.97,158.96,21.25796542]
[1724561359699,0.817806,158.97,158.96,20.0]
[1724561360408,0.817806,158.97,158.96,21.2573275]
[1724561362314,0.817806,158.97,158.96,22.83148004]
[1724561363290,0.817806,158.97,158.96,62.3227678]
[1724561365603,0.817806,158.97,158.96,22.83148004]
[1724561366519,0.817806,158.97,158.96,62.3227678]
[1724561367696,0.817806,158.97,158.96,61.0654403]
[1724561368206,0.817806,158.97,158.96,59.49128776]
[1724561368701,0.817806,158.97,158.96,61.0652591]
[1724561370199,0.817806,158.97,158.96,21.57397134]
[1724561370521,0.817806,158.97,158.96,22.83074515]
[1724561370721,0.817806,158.97,158.95,17.63817684]
[1724561372432,0.817806,158.97,158.96,20.0]
[1724561378409,0.817806,158.97,158.96,21.57430537]
[1724561379696,0.817806,158.97,158.95,7.7653549]
[1724561379902,0.817806,158.97,158.94,9.87282194]
[1724561380113,0.817806,158.97,158.95,1.57442534]
[1724561380304,0.817806,158.97,158.93,1.57442534]
[1724561380305,22.6559,158.96,158.93,1.57442534]
[1724561380527,1.29518105,158.95,158.91,10.4503948]
[1724561380848,1.29518105,158.95,158.92,1.57470442]
[1724561381006,1.29518105,158.95,158.92,1.57470638]
[1724561381329,1.29518105,158.95,158.93,1.57470638]
[1724561381515,1.29518105,158.95,158.91,7.7653549]
[1724561381729,1.29518105,158.95,158.92,21.57483847]
[1724561381907,1.29518105,158.95,158.92,20.0]
[1724561382317,1.29518105,158.95,158.86,6.57643866]
[1724561382318,1.29518105,158.95,158.89,9.87282194]
[1724561382519,1.29518105,158.95,158.9,1.5749838]
[1724561382721,1.29518105,158.95,158.91,1.5749838]
[1724561382920,1.29518105,158.95,158.89,9.87282194]
[1724561383106,46.29518105,158.95,158.9,1.57499057]
[1724561383420,45.0,158.95,158.9,1.57505383]
[1724561384004,1.29518105,158.94,158.87,7.7653549]
[1724561384204,45.0,158.95,158.88,1.57525908]
[1724561384428,45.0,158.95,158.87,9.02406347]
[1724561385218,45.0,158.95,158.87,10.5993093]
[1724561385539,45.0,158.95,158.88,20.0]
[1724561387304,1.29518105,158.94,158.88,20.0]
[1724561387536,1.29518105,158.94,158.87,20.0]
[1724561388833,16.1735,158.93,158.87,20.0]
[1724561389016,45.0,158.92,158.87,20.0]
[1724561389926,6.4824,158.91,158.87,20.0]
[1724561400743,61.128,158.9,158.81,6.57814344]
[1724561400924,71.00082194,158.9,158.79,7.7653549]
[1724561401124,1.29518105,158.89,158.81,9.87282194]
[1724561402314,1.29518105,158.89,158.82,20.0]
[1724561402948,1.29518105,158.89,158.79,7.7653549]
[1724561402949,1.29518105,158.89,158.8,29.87282194]
[1724561403150,1.29518105,158.89,158.8,20.0]
[1724561403355,22.7074,158.88,158.8,20.0]
[1724561403643,46.29518105,158.87,158.8,20.0]
[1724561404449,9.87282194,158.86,158.76,6.57604691]
[1724561404616,15.4054,158.84,158.77,9.87282194]
[1724561405752,15.4054,158.84,158.78,20.0]
[1724561406833,1.29518105,158.83,158.78,20.0]
[1724561407138,1.29518105,158.83,158.73,7.7653549]
[1724561407139,6.3119,158.82,158.76,9.87282194]
[1724561407344,6.3119,158.82,158.77,20.0]
[1724561407522,6.3119,158.82,158.75,20.0]
[1724561407523,6.3119,158.82,158.76,9.87282194]
[1724561407716,6.3119,158.82,158.77,20.0]
[1724561410136,7.60708105,158.82,158.77,20.0]
[1724561410442,45.0,158.81,158.74,29.87282194]
[1724561410943,45.0,158.81,158.74,20.0]
[1724561411243,15.4054,158.79,158.73,9.87282194]
[1724561411620,16.70058105,158.79,158.73,9.87282194]
[1724561411947,45.0,158.78,158.71,9.87282194]
[1724561412448,1.29518105,158.77,158.71,9.87282194]
[1724561412617,6.3119,158.77,158.71,9.87282194]
[1724561413146,6.3119,158.77,158.72,20.0]
[1724561413640,45.0,158.76,158.72,20.0]
[1724561413844,45.0,158.76,158.71,20.0]
[1724561414143,45.0,158.76,158.71,21.26004255]
[1724561414342,6.3119,158.77,158.71,21.26004255]
[1724561414540,6.3119,158.77,158.72,9.87282194]
[1724561414718,6.3119,158.77,158.74,9.87282194]
[1724561414921,6.3119,158.77,158.74,11.13255288]
[1724561415522,6.3119,158.77,158.74,1.25973094]
[1724561415744,6.3119,158.77,158.74,11.13255288]
[1724561415944,6.3119,158.77,158.74,9.87282194]
[1724561417646,15.4054,158.79,158.76,9.87282194]
[1724561421950,15.4054,158.79,158.75,9.87282194]
[1724561423152,15.4054,158.79,158.77,9.87282194]
[1724561423346,6.3093,158.81,158.77,9.87282194]
[1724561430432,6.3093,158.81,158.73,1.57638109]
[1724561430654,6.3093,158.81,158.75,9.87282194]
[1724561431355,6.3093,158.81,158.76,20.0]
[1724561432174,6.3093,158.81,158.77,9.87282194]
[1724561440982,6.3093,158.81,158.66,15.503]
[1724561440983,26.31360299,158.8,158.66,15.503]
[1724561441153,1.29518105,158.79,158.7,11.44939312]
[1724561441479,1.29518105,158.79,158.71,1.57657118]
[1724561441950,1.29518105,158.79,158.7,11.44939312]
[1724561442153,1.29518105,158.79,158.71,20.0]
[1724561442450,7.59278105,158.79,158.72,1.57657118]
[1724561442667,45.0,158.78,158.72,1.57668518]
[1724561442974,1.29518105,158.77,158.72,1.57668518]
[1724561444349,1.29518105,158.77,158.73,1.57668518]
[1724561444546,1.29518105,158.77,158.72,1.57668518]
[1724561444877,15.8619,158.89,158.76,69.3641097]
[1724561445059,15.8619,158.89,158.84,9.87282194]
[1724561445786,17.15708105,158.89,158.82,12.56156698]
[1724561445958,17.15708105,158.89,158.82,9.87282194]
[1724561446159,45.0,158.88,158.82,9.87282194]
[1724561446367,1.29518105,158.87,158.82,9.87282194]
[1724561446968,46.29518105,158.88,158.82,9.87282194]
[1724561447175,15.8619,158.89,158.84,9.87282194]
[1724561448453,45.0,158.88,158.84,9.87282194]
[1724561457680,45.0,158.88,158.78,4.35154908]
[1724561457880,45.0,158.88,158.83,9.87282194]
[1724561458864,45.0,158.88,158.78,4.35139885]
[1724561459083,45.0,158.88,158.83,9.87282194]
[1724561459466,15.8619,158.89,158.87,9.87282194]
[1724561459685,6.0636,158.9,158.87,9.87282194]
[1724561459990,15.4846,158.93,158.87,9.87282194]
[1724561460285,16.77978105,158.93,158.87,9.87282194]
[1724561460693,1.29518105,158.92,158.87,9.87282194]
[1724561461467,46.29518105,158.92,158.87,9.87282194]
[1724561466895,1.29518105,158.91,158.87,9.87282194]
[1724561467099,45.0,158.92,158.85,9.87282194]
[1724561467798,45.0,158.92,158.87,9.87282194]
[1724561474198,46.29518105,158.92,158.87,9.87282194]
[1724561475496,45.0,158.92,158.87,9.87282194]
[1724561476201,46.29518105,158.92,158.87,9.87282194]
[1724561481819,15.4846,158.93,158.89,9.87282194]
[1724561483509,1.29518105,158.92,158.89,9.87282194]
[1724561487107,15.4846,158.93,158.89,9.87282194]
[1724561487410,16.77978105,158.93,158.89,9.87282194]
[1724561487787,15.4846,158.93,158.89,9.87282194]
[1724561488610,6.2875,158.94,158.89,9.87282194]
[1724561488911,16.454506,158.97,158.91,9.87282194]
[1724561490323,45.0,158.96,158.91,9.87282194]
[1724561490704,16.454506,158.97,158.91,9.87282194]
[1724561491426,1.29518105,158.96,158.91,9.87282194]
[1724561491920,16.454506,158.97,158.91,9.87282194]
[1724561495627,16.454506,158.97,158.88,39.49128776]
[1724561495808,16.454506,158.97,158.92,9.87282194]
[1724561501343,16.454506,158.97,158.9,9.87282194]
[1724561501628,46.29518105,158.96,158.9,9.87282194]
[1724561504536,45.0,158.96,158.9,9.87282194]
[1724561505943,45.0,158.96,158.91,1.57502064]
[1724561506120,45.0,158.96,158.92,1.57502064]
[1724561506325,45.0,158.96,158.93,1.57502064]
[1724561506630,45.0,158.96,158.9,9.87282194]
[1724561507337,45.0,158.96,158.91,1.57502054]
[1724561507544,45.0,158.96,158.92,1.57502054]
[1724561507840,46.29518105,158.96,158.93,1.57502054]
[1724561508043,1.29518105,158.95,158.84,23.92875156]
[1724561508347,7.58638105,158.95,158.88,9.87282194]